[Event "Titled Tuesday Blitz May 23 Late 2023"]
[White "Pires, Marcos Vinicius Torsani"]
[Black "Eugene, Floryan"]
[WhiteFideId "2118939"]
[BlackFideId "20694784"]
[WhiteElo "2273"]
[BlackElo "2369"]
[Result "0-1"]
[Round "05"]
[TimeControl "180+2"]
[Date "2023.05.23"]
[WhiteClock "0:00:00"]
[BlackClock "0:00:24"]

1. e4 {[%clk 0:03:00]}  c5 {[%clk 0:02:59]} 2. c3 {[%clk 0:02:55]}  d5 {[%clk 0:02:57]} 3. exd5 {[%clk 0:02:55]}  Qxd5 {[%clk 0:02:58]} 4. d4 {[%clk 0:02:55]}  Nf6 {[%clk 0:02:56]} 5. Nf3 {[%clk 0:02:53]}  Bg4 {[%clk 0:02:57]} 6. Be2 {[%clk 0:02:52]}  e6 {[%clk 0:02:56]} 7. h3 {[%clk 0:02:51]}  Bh5 {[%clk 0:02:55]} 8. Be3 {[%clk 0:02:50]}  cxd4 {[%clk 0:02:53]} 9. cxd4 {[%clk 0:02:50]}  Nc6 {[%clk 0:02:52]} 10. Nc3 {[%clk 0:02:48]}  Qd6 {[%clk 0:02:38]} 11. O-O {[%clk 0:02:41]}  Be7 {[%clk 0:02:37]} 12. Qb3 {[%clk 0:02:42]}  Qb4 {[%clk 0:02:35]} 13. Qc2 {[%clk 0:02:30]}  O-O {[%clk 0:02:33]} 14. a3 {[%clk 0:02:29]}  Qd6 {[%clk 0:02:21]} 15. Rfd1 {[%clk 0:02:23]}  Rac8 {[%clk 0:02:19]} 16. Qb3 {[%clk 0:02:21]}  Qb8 {[%clk 0:02:18]} 17. Rac1 {[%clk 0:02:16]}  Rfd8 {[%clk 0:02:15]} 18. d5 {[%clk 0:01:57]}  exd5 {[%clk 0:02:04]} 19. Nxd5 {[%clk 0:01:58]}  Nxd5 {[%clk 0:02:03]} 20. Rxd5 {[%clk 0:01:58]}  Bg6 {[%clk 0:02:03]} 21. Rcd1 {[%clk 0:01:50]}  Bf6 {[%clk 0:01:59]} 22. Bb5 {[%clk 0:01:22]}  Rxd5 {[%clk 0:01:43]} 23. Qxd5 {[%clk 0:01:08]}  Rd8 {[%clk 0:01:37]} 24. Qb3 {[%clk 0:01:02]}  Rxd1+ {[%clk 0:01:37]} 25. Qxd1 {[%clk 0:01:03]}  Bxb2 {[%clk 0:01:37]} 26. Bxc6 {[%clk 0:00:56]}  bxc6 {[%clk 0:01:35]} 27. Bxa7 {[%clk 0:00:55]}  Qe8 {[%clk 0:01:29]} 28. Bc5 {[%clk 0:00:53]}  h6 {[%clk 0:01:23]} 29. Qd2 {[%clk 0:00:48]}  Bf6 {[%clk 0:01:22]} 30. a4 {[%clk 0:00:40]}  Be4 {[%clk 0:01:22]} 31. Qe3 {[%clk 0:00:33]}  Qe6 {[%clk 0:01:18]} 32. Nd2 {[%clk 0:00:30]}  Bd5 {[%clk 0:01:02]} 33. a5 {[%clk 0:00:29]}  Qc8 {[%clk 0:01:00]} 34. Ne4 {[%clk 0:00:25]}  Bd8 {[%clk 0:00:57]} 35. Nd6 {[%clk 0:00:25]}  Qb8 {[%clk 0:00:49]} 36. Qe8+ {[%clk 0:00:22]}  Kh7 {[%clk 0:00:49]} 37. Nxf7 {[%clk 0:00:15]}  Qb1+ {[%clk 0:00:49]} 38. Kh2 {[%clk 0:00:15]}  Bxa5 {[%clk 0:00:39]} 39. Qh8+ {[%clk 0:00:12]}  Kg6 {[%clk 0:00:39]} 40. Ne5+ {[%clk 0:00:13]}  Kf6 {[%clk 0:00:35]} 41. Ng4+ {[%clk 0:00:13]}  Kg6 {[%clk 0:00:32]} 42. Qe8+ {[%clk 0:00:11]}  Kh7 {[%clk 0:00:30]} 43. Qe7 {[%clk 0:00:08]}  Qf5 {[%clk 0:00:26]} 44. Bd4 {[%clk 0:00:00]}  Qf4+ {[%clk 0:00:24]} 0-1


[Site "https://www.chess.com"]

[Event "Titled Tuesday Blitz May 23 Late 2023"]
[White "Perez Rodriguez, Jennifer"]
[Black "Kiremitciyan, Ari"]
[WhiteFideId "3507831"]
[BlackFideId "6373445"]
[WhiteElo "2116"]
[BlackElo "2181"]
[Result "0-1"]
[Round "05"]
[TimeControl "180+2"]
[Date "2023.05.23"]
[WhiteClock "0:00:08"]
[BlackClock "0:00:08"]

1. e4 {[%clk 0:03:00]}  e5 {[%clk 0:02:58]} 2. Nf3 {[%clk 0:02:59]}  Nc6 {[%clk 0:02:58]} 3. d4 {[%clk 0:02:59]}  exd4 {[%clk 0:02:59]} 4. Bc4 {[%clk 0:03:00]}  Bc5 {[%clk 0:02:57]} 5. O-O {[%clk 0:03:00]}  Nf6 {[%clk 0:02:57]} 6. e5 {[%clk 0:03:00]}  d5 {[%clk 0:02:57]} 7. exf6 {[%clk 0:02:59]}  dxc4 {[%clk 0:02:57]} 8. Re1+ {[%clk 0:02:59]}  Be6 {[%clk 0:02:57]} 9. Ng5 {[%clk 0:03:00]}  Qd5 {[%clk 0:02:50]} 10. Nc3 {[%clk 0:03:00]}  Qf5 {[%clk 0:02:49]} 11. g4 {[%clk 0:03:01]}  Qxf6 {[%clk 0:02:21]} 12. Nd5 {[%clk 0:02:58]}  Qd8 {[%clk 0:01:59]} 13. Rxe6+ {[%clk 0:02:54]}  fxe6 {[%clk 0:01:59]} 14. Nxe6 {[%clk 0:02:55]}  Qd7 {[%clk 0:01:33]} 15. Ndxc7+ {[%clk 0:02:49]}  Kf7 {[%clk 0:01:16]} 16. Qf3+ {[%clk 0:02:25]}  Kg8 {[%clk 0:01:06]} 17. Nxa8 {[%clk 0:02:05]}  Qxe6 {[%clk 0:01:04]} 18. Bd2 {[%clk 0:02:01]}  Qf7 {[%clk 0:00:59]} 19. Qg3 {[%clk 0:01:55]}  h5 {[%clk 0:00:53]} 20. g5 {[%clk 0:01:52]}  h4 {[%clk 0:00:53]} 21. Qf4 {[%clk 0:01:39]}  Qxf4 {[%clk 0:00:43]} 22. Bxf4 {[%clk 0:01:40]}  Kf7 {[%clk 0:00:38]} 23. Nc7 {[%clk 0:01:41]}  Rd8 {[%clk 0:00:31]} 24. Re1 {[%clk 0:01:30]}  Bd6 {[%clk 0:00:21]} 25. Bxd6 {[%clk 0:01:27]}  Rxd6 {[%clk 0:00:22]} 26. Nb5 {[%clk 0:01:27]}  Rd5 {[%clk 0:00:20]} 27. Na3 {[%clk 0:01:27]}  Rxg5+ {[%clk 0:00:20]} 28. Kf1 {[%clk 0:01:27]}  b5 {[%clk 0:00:19]} 29. b3 {[%clk 0:01:24]}  c3 {[%clk 0:00:15]} 30. Re4 {[%clk 0:01:13]}  h3 {[%clk 0:00:14]} 31. Rh4 {[%clk 0:01:02]}  a6 {[%clk 0:00:14]} 32. Rxh3 {[%clk 0:01:01]}  Nb4 {[%clk 0:00:15]} 33. Rh4 {[%clk 0:00:59]}  Rd5 {[%clk 0:00:15]} 34. Ke2 {[%clk 0:00:57]}  Nxa2 {[%clk 0:00:14]} 35. Rf4+ {[%clk 0:00:54]}  Ke6 {[%clk 0:00:14]} 36. Re4+ {[%clk 0:00:47]}  Kd6 {[%clk 0:00:12]} 37. Re8 {[%clk 0:00:45]}  Kc7 {[%clk 0:00:06]} 38. Re7+ {[%clk 0:00:37]}  Kb6 {[%clk 0:00:04]} 39. Rxg7 {[%clk 0:00:31]}  Nb4 {[%clk 0:00:03]} 40. h4 {[%clk 0:00:30]}  Re5+ {[%clk 0:00:03]} 41. Kd1 {[%clk 0:00:28]}  Re4 {[%clk 0:00:03]} 42. Rg6+ {[%clk 0:00:29]}  Ka5 {[%clk 0:00:03]} 43. Rg5 {[%clk 0:00:27]}  Kb6 {[%clk 0:00:01]} 44. h5 {[%clk 0:00:26]}  Rh4 {[%clk 0:00:01]} 45. Rg6+ {[%clk 0:00:26]}  Kb7 {[%clk 0:00:02]} 46. h6 {[%clk 0:00:27]}  Kb8 {[%clk 0:00:01]} 47. Ke2 {[%clk 0:00:25]}  d3+ {[%clk 0:00:01]} 48. cxd3 {[%clk 0:00:25]}  c2 {[%clk 0:00:02]} 49. Nxc2 {[%clk 0:00:25]}  Nxc2 {[%clk 0:00:02]} 50. Rg8+ {[%clk 0:00:26]}  Kb7 {[%clk 0:00:02]} 51. Rg7+ {[%clk 0:00:27]}  Kb6 {[%clk 0:00:03]} 52. h7 {[%clk 0:00:28]}  Ka5 {[%clk 0:00:03]} 53. Kf3 {[%clk 0:00:27]}  Nd4+ {[%clk 0:00:03]} 54. Kg3 {[%clk 0:00:28]}  Rh6 {[%clk 0:00:04]} 55. Rf7 {[%clk 0:00:25]}  Ne6 {[%clk 0:00:04]} 56. Kg4 {[%clk 0:00:25]}  Nc5 {[%clk 0:00:03]} 57. Kg5 {[%clk 0:00:25]}  Rh2 {[%clk 0:00:04]} 58. Rf4 {[%clk 0:00:24]}  Ne6+ {[%clk 0:00:03]} 59. Kg4 {[%clk 0:00:21]}  Nxf4 {[%clk 0:00:04]} 60. h8=Q {[%clk 0:00:09]}  Rxh8 {[%clk 0:00:04]} 61. Kxf4 {[%clk 0:00:09]}  Re8 {[%clk 0:00:04]} 62. d4 {[%clk 0:00:09]}  Kb4 {[%clk 0:00:05]} 63. Kf5 {[%clk 0:00:09]}  Kxb3 {[%clk 0:00:05]} 64. d5 {[%clk 0:00:09]}  Kc4 {[%clk 0:00:06]} 65. d6 {[%clk 0:00:09]}  Kc5 {[%clk 0:00:06]} 66. d7 {[%clk 0:00:10]}  Rd8 {[%clk 0:00:06]} 67. Ke6 {[%clk 0:00:11]}  Kc6 {[%clk 0:00:07]} 68. f4 {[%clk 0:00:11]}  Rxd7 {[%clk 0:00:08]} 69. f5 {[%clk 0:00:12]}  Rd1 {[%clk 0:00:08]} 70. f6 {[%clk 0:00:08]}  Re1+ {[%clk 0:00:08]} 0-1


[Site "https://www.chess.com"]

[Event "Titled Tuesday Blitz May 23 Late 2023"]
[White "Ollier, Pablo"]
[Black "Dudzinski, Pawel"]
[WhiteFideId "652318"]
[BlackFideId "1117890"]
[WhiteElo "2571"]
[BlackElo "2099"]
[Result "0-1"]
[Round "05"]
[TimeControl "180+2"]
[Date "2023.05.23"]
[WhiteClock "0:00:01"]
[BlackClock "0:00:45"]

1. d4 {[%clk 0:03:00]}  d5 {[%clk 0:02:57]} 2. c4 {[%clk 0:03:00]}  c6 {[%clk 0:02:58]} 3. Nc3 {[%clk 0:03:01]}  e6 {[%clk 0:02:58]} 4. e3 {[%clk 0:03:01]}  f5 {[%clk 0:02:58]} 5. g4 {[%clk 0:03:01]}  Nf6 {[%clk 0:02:57]} 6. gxf5 {[%clk 0:03:01]}  exf5 {[%clk 0:02:58]} 7. Qb3 {[%clk 0:03:02]}  Qb6 {[%clk 0:02:54]} 8. cxd5 {[%clk 0:02:55]}  Qxb3 {[%clk 0:02:50]} 9. axb3 {[%clk 0:02:56]}  Nxd5 {[%clk 0:02:50]} 10. Nxd5 {[%clk 0:02:46]}  cxd5 {[%clk 0:02:51]} 11. Nh3 {[%clk 0:02:47]}  Bd6 {[%clk 0:02:48]} 12. Rg1 {[%clk 0:01:53]}  g6 {[%clk 0:02:44]} 13. Ng5 {[%clk 0:01:43]}  Bxh2 {[%clk 0:02:28]} 14. Rh1 {[%clk 0:01:39]}  Bd6 {[%clk 0:02:28]} 15. Bg2 {[%clk 0:01:31]}  Nc6 {[%clk 0:02:17]} 16. Bxd5 {[%clk 0:00:48]}  Nb4 {[%clk 0:02:15]} 17. Bf7+ {[%clk 0:00:48]}  Ke7 {[%clk 0:02:12]} 18. Ke2 {[%clk 0:00:41]}  Kf6 {[%clk 0:01:59]} 19. f4 {[%clk 0:00:32]}  Bd7 {[%clk 0:01:19]} 20. Bc4 {[%clk 0:00:33]}  h6 {[%clk 0:01:19]} 21. Nf3 {[%clk 0:00:32]}  b5 {[%clk 0:01:08]} 22. Ne5 {[%clk 0:00:07]}  bxc4 {[%clk 0:01:01]} 23. Nxd7+ {[%clk 0:00:07]}  Ke7 {[%clk 0:01:02]} 24. Ne5 {[%clk 0:00:07]}  Bxe5 {[%clk 0:01:02]} 25. fxe5 {[%clk 0:00:07]}  cxb3 {[%clk 0:01:00]} 26. Bd2 {[%clk 0:00:06]}  a5 {[%clk 0:00:53]} 27. Bxb4+ {[%clk 0:00:06]}  axb4 {[%clk 0:00:53]} 28. Rxa8 {[%clk 0:00:07]}  Rxa8 {[%clk 0:00:53]} 29. Rxh6 {[%clk 0:00:07]}  Ra2 {[%clk 0:00:54]} 30. Rxg6 {[%clk 0:00:06]}  Rxb2+ {[%clk 0:00:54]} 31. Kd3 {[%clk 0:00:04]}  Rb1 {[%clk 0:00:45]} 32. Rb6 {[%clk 0:00:04]}  Rd1+ {[%clk 0:00:43]} 33. Ke2 {[%clk 0:00:02]}  b2 {[%clk 0:00:44]} 34. Rxb4 {[%clk 0:00:01]}  b1=Q {[%clk 0:00:44]} 35. Rxb1 {[%clk 0:00:02]}  Rxb1 {[%clk 0:00:45]} 36. Kf3 {[%clk 0:00:01]}  Ke6 {[%clk 0:00:45]} 0-1


[Site "https://www.chess.com"]

[Event "Titled Tuesday Blitz May 23 Late 2023"]
[White "Danielyan, Vahe"]
[Black "Prydun, Andriy"]
[WhiteFideId "13304828"]
[BlackFideId "14145898"]
[WhiteElo "2423"]
[BlackElo "2164"]
[Result "1-0"]
[Round "05"]
[TimeControl "180+2"]
[Date "2023.05.23"]
[WhiteClock "0:02:22"]
[BlackClock "0:00:02"]

1. e4 {[%clk 0:02:56]}  c6 {[%clk 0:00:06]} 2. d4 {[%clk 0:02:54]}  d5 {[%clk 0:00:07]} 3. e5 {[%clk 0:02:54]}  Bf5 {[%clk 0:00:06]} 4. h4 {[%clk 0:02:55]}  Bc8 {[%clk 0:00:06]} 5. Nc3 {[%clk 0:02:54]}  e6 {[%clk 0:00:06]} 6. h5 {[%clk 0:02:54]}  h6 {[%clk 0:00:05]} 7. f4 {[%clk 0:02:54]}  Ne7 {[%clk 0:00:05]} 8. Nf3 {[%clk 0:02:55]}  Nd7 {[%clk 0:00:05]} 9. g4 {[%clk 0:02:55]}  b6 {[%clk 0:00:05]} 10. Be3 {[%clk 0:02:55]}  a6 {[%clk 0:00:05]} 11. Qd2 {[%clk 0:02:56]}  c5 {[%clk 0:00:05]} 12. O-O-O {[%clk 0:02:56]}  c4 {[%clk 0:00:06]} 13. f5 {[%clk 0:02:55]}  exf5 {[%clk 0:00:05]} 14. gxf5 {[%clk 0:02:56]}  Nxf5 {[%clk 0:00:06]} 15. Nxd5 {[%clk 0:02:56]}  Bb7 {[%clk 0:00:06]} 16. Bxc4 {[%clk 0:02:56]}  b5 {[%clk 0:00:06]} 17. Bb3 {[%clk 0:02:56]}  a5 {[%clk 0:00:06]} 18. e6 {[%clk 0:02:55]}  fxe6 {[%clk 0:00:06]} 19. Nf4 {[%clk 0:02:56]}  Bxf3 {[%clk 0:00:05]} 20. Bxe6 {[%clk 0:02:56]}  Bxh1 {[%clk 0:00:04]} 21. Bxf5 {[%clk 0:02:53]}  Bc6 {[%clk 0:00:04]} 22. d5 {[%clk 0:02:53]}  Bb7 {[%clk 0:00:04]} 23. Bg6+ {[%clk 0:02:54]}  Ke7 {[%clk 0:00:04]} 24. d6+ {[%clk 0:02:55]}  Kf6 {[%clk 0:00:05]} 25. Qd4+ {[%clk 0:02:54]}  Ne5 {[%clk 0:00:05]} 26. Nd3 {[%clk 0:02:55]}  Bxd6 {[%clk 0:00:05]} 27. Rf1+ {[%clk 0:02:54]}  Ke6 {[%clk 0:00:05]} 28. Nxe5 {[%clk 0:02:32]}  Bxe5 {[%clk 0:00:05]} 29. Bf7+ {[%clk 0:02:32]}  Ke7 {[%clk 0:00:04]} 30. Qxe5+ {[%clk 0:02:33]}  Kd7 {[%clk 0:00:04]} 31. Be6+ {[%clk 0:02:31]}  Ke8 {[%clk 0:00:02]} 32. Qxg7 {[%clk 0:02:22]}  Qb6 {[%clk 0:00:02]} 1-0


[Site "https://www.chess.com"]

[Event "Titled Tuesday Blitz May 23 Late 2023"]
[White "Adewumi, Tanitoluwa"]
[Black "Kirillov, Dmitry"]
[WhiteFideId "30966396"]
[BlackFideId "34180572"]
[WhiteElo "2567"]
[BlackElo "2161"]
[Result "1-0"]
[Round "05"]
[TimeControl "180+2"]
[Date "2023.05.23"]
[WhiteClock "0:00:04"]
[BlackClock "0:00:50"]

1. e4 {[%clk 0:03:00]}  c6 {[%clk 0:02:55]} 2. d4 {[%clk 0:02:55]}  d5 {[%clk 0:02:56]} 3. exd5 {[%clk 0:02:53]}  cxd5 {[%clk 0:02:57]} 4. Bd3 {[%clk 0:02:54]}  Nc6 {[%clk 0:02:58]} 5. c3 {[%clk 0:02:45]}  Nf6 {[%clk 0:02:58]} 6. h3 {[%clk 0:02:31]}  g6 {[%clk 0:02:58]} 7. Nf3 {[%clk 0:02:21]}  Bf5 {[%clk 0:02:56]} 8. O-O {[%clk 0:02:17]}  Bg7 {[%clk 0:02:54]} 9. Re1 {[%clk 0:02:12]}  O-O {[%clk 0:02:54]} 10. Bf4 {[%clk 0:01:58]}  Rc8 {[%clk 0:02:49]} 11. Bxf5 {[%clk 0:01:53]}  gxf5 {[%clk 0:02:49]} 12. Qd3 {[%clk 0:01:53]}  e6 {[%clk 0:02:49]} 13. Nbd2 {[%clk 0:01:47]}  Ne4 {[%clk 0:02:46]} 14. Ne5 {[%clk 0:01:25]}  Ne7 {[%clk 0:02:37]} 15. f3 {[%clk 0:01:20]}  Nxd2 {[%clk 0:02:33]} 16. Qxd2 {[%clk 0:01:21]}  Ng6 {[%clk 0:02:33]} 17. Bg5 {[%clk 0:01:04]}  Qd6 {[%clk 0:02:16]} 18. Bh6 {[%clk 0:00:39]}  Rfe8 {[%clk 0:01:38]} 19. Re2 {[%clk 0:00:28]}  Bh8 {[%clk 0:01:34]} 20. Rae1 {[%clk 0:00:27]}  Qb6 {[%clk 0:01:29]} 21. Nd7 {[%clk 0:00:12]}  Qd8 {[%clk 0:01:24]} 22. Ne5 {[%clk 0:00:12]}  Qe7 {[%clk 0:01:16]} 23. Bg5 {[%clk 0:00:10]}  Bf6 {[%clk 0:01:16]} 24. Bxf6 {[%clk 0:00:08]}  Qxf6 {[%clk 0:01:17]} 25. Nd7 {[%clk 0:00:07]}  Qh4 {[%clk 0:01:12]} 26. Qe3 {[%clk 0:00:04]}  Kh8 {[%clk 0:01:09]} 27. Ne5 {[%clk 0:00:03]}  Rc7 {[%clk 0:01:02]} 28. Nxg6+ {[%clk 0:00:02]}  hxg6 {[%clk 0:01:03]} 29. Qe5+ {[%clk 0:00:02]}  Kh7 {[%clk 0:00:53]} 30. Qxc7 {[%clk 0:00:03]}  Kg7 {[%clk 0:00:54]} 31. Qe5+ {[%clk 0:00:03]}  Kh7 {[%clk 0:00:53]} 32. Qe3 {[%clk 0:00:03]}  Rh8 {[%clk 0:00:53]} 33. Qf2 {[%clk 0:00:04]}  Qg5 {[%clk 0:00:52]} 34. f4 {[%clk 0:00:04]}  Qf6 {[%clk 0:00:52]} 35. Qg3 {[%clk 0:00:03]}  Kg7 {[%clk 0:00:50]} 36. Qg5 {[%clk 0:00:04]} 1-0


[Site "https://www.chess.com"]

[Event "Titled Tuesday Blitz May 23 Late 2023"]
[White "Mortazavi, Ali"]
[Black "Arnold, Ken"]
[WhiteFideId "401323"]
[BlackFideId "2056836"]
[WhiteElo "2339"]
[BlackElo "2407"]
[Result "0-1"]
[Round "05"]
[TimeControl "180+2"]
[Date "2023.05.23"]
[WhiteClock "0:00:01"]
[BlackClock "0:00:06"]

1. Nf3 {[%clk 0:02:09]}  d5 {[%clk 0:02:59]} 2. g3 {[%clk 0:02:10]}  Nf6 {[%clk 0:02:59]} 3. Bg2 {[%clk 0:02:11]}  g6 {[%clk 0:02:58]} 4. O-O {[%clk 0:02:12]}  Bg7 {[%clk 0:02:59]} 5. d3 {[%clk 0:02:13]}  O-O {[%clk 0:02:59]} 6. Nbd2 {[%clk 0:02:14]}  Bg4 {[%clk 0:02:55]} 7. e4 {[%clk 0:02:13]}  c6 {[%clk 0:02:53]} 8. h3 {[%clk 0:02:11]}  Bxf3 {[%clk 0:02:50]} 9. Qxf3 {[%clk 0:02:12]}  dxe4 {[%clk 0:02:49]} 10. dxe4 {[%clk 0:02:10]}  Nbd7 {[%clk 0:02:41]} 11. Qe2 {[%clk 0:02:10]}  Nb6 {[%clk 0:02:37]} 12. e5 {[%clk 0:02:07]}  Nfd5 {[%clk 0:02:35]} 13. e6 {[%clk 0:02:07]}  f5 {[%clk 0:02:32]} 14. Nf3 {[%clk 0:01:57]}  Qc8 {[%clk 0:02:22]} 15. Re1 {[%clk 0:01:43]}  h6 {[%clk 0:01:56]} 16. c4 {[%clk 0:01:23]}  Nc7 {[%clk 0:01:54]} 17. Bf4 {[%clk 0:01:24]}  Rf6 {[%clk 0:01:44]} 18. Bxc7 {[%clk 0:01:18]}  Qxc7 {[%clk 0:01:44]} 19. Rad1 {[%clk 0:01:16]}  Rff8 {[%clk 0:01:37]} 20. Nh4 {[%clk 0:01:11]}  Kh7 {[%clk 0:01:32]} 21. c5 {[%clk 0:01:10]}  Nd5 {[%clk 0:01:29]} 22. Bxd5 {[%clk 0:01:08]}  cxd5 {[%clk 0:01:29]} 23. Rxd5 {[%clk 0:01:09]}  Rad8 {[%clk 0:01:26]} 24. Red1 {[%clk 0:01:04]}  Rxd5 {[%clk 0:01:26]} 25. Rxd5 {[%clk 0:01:04]}  Bf6 {[%clk 0:01:21]} 26. Ng2 {[%clk 0:01:03]}  Qc6 {[%clk 0:01:11]} 27. Rd7 {[%clk 0:00:49]}  Qxc5 {[%clk 0:01:01]} 28. Rxb7 {[%clk 0:00:47]}  a5 {[%clk 0:00:57]} 29. b3 {[%clk 0:00:44]}  Ra8 {[%clk 0:00:53]} 30. Nf4 {[%clk 0:00:39]}  a4 {[%clk 0:00:51]} 31. b4 {[%clk 0:00:39]}  Qc1+ {[%clk 0:00:49]} 32. Kh2 {[%clk 0:00:39]}  a3 {[%clk 0:00:48]} 33. Nd5 {[%clk 0:00:37]}  Qb2 {[%clk 0:00:47]} 34. Qf3 {[%clk 0:00:22]}  Rc8 {[%clk 0:00:30]} 35. Nxe7 {[%clk 0:00:21]}  Rc2 {[%clk 0:00:25]} 36. Nd5+ {[%clk 0:00:15]}  Kh8 {[%clk 0:00:23]} 37. Rb8+ {[%clk 0:00:14]}  Kh7 {[%clk 0:00:22]} 38. Nxf6+ {[%clk 0:00:13]}  Qxf6 {[%clk 0:00:20]} 39. Rb7+ {[%clk 0:00:12]}  Kg8 {[%clk 0:00:18]} 40. e7 {[%clk 0:00:12]}  Rc8 {[%clk 0:00:17]} 41. Qd5+ {[%clk 0:00:12]}  Qf7 {[%clk 0:00:18]} 42. Qd8+ {[%clk 0:00:12]}  Qe8 {[%clk 0:00:18]} 43. Rd7 {[%clk 0:00:09]}  Kf7 {[%clk 0:00:17]} 44. b5 {[%clk 0:00:05]}  Rc2 {[%clk 0:00:16]} 45. Kg2 {[%clk 0:00:05]}  Rxa2 {[%clk 0:00:16]} 46. Qc7 {[%clk 0:00:04]}  Re2 {[%clk 0:00:16]} 47. Qc4+ {[%clk 0:00:04]}  Re6 {[%clk 0:00:15]} 48. Ra7 {[%clk 0:00:03]}  Kf6 {[%clk 0:00:15]} 49. Qc3+ {[%clk 0:00:03]}  Kf7 {[%clk 0:00:15]} 50. Qb3 {[%clk 0:00:03]}  Kf6 {[%clk 0:00:15]} 51. Qxa3 {[%clk 0:00:03]}  Rxe7 {[%clk 0:00:15]} 52. Qb2+ {[%clk 0:00:04]}  Kf7 {[%clk 0:00:15]} 53. Qb3+ {[%clk 0:00:04]}  Kg7 {[%clk 0:00:14]} 54. Qc3+ {[%clk 0:00:04]}  Kg8 {[%clk 0:00:14]} 55. Qc4+ {[%clk 0:00:04]}  Kg7 {[%clk 0:00:14]} 56. Qd4+ {[%clk 0:00:05]}  Kg8 {[%clk 0:00:14]} 57. Qd5+ {[%clk 0:00:05]}  Kg7 {[%clk 0:00:11]} 58. Qd4+ {[%clk 0:00:04]}  Kg8 {[%clk 0:00:11]} 59. b6 {[%clk 0:00:05]}  Rxa7 {[%clk 0:00:09]} 60. bxa7 {[%clk 0:00:05]}  Qa8+ {[%clk 0:00:09]} 61. f3 {[%clk 0:00:04]}  Qb7 {[%clk 0:00:08]} 62. h4 {[%clk 0:00:04]}  g5 {[%clk 0:00:08]} 63. Kh3 {[%clk 0:00:03]}  g4+ {[%clk 0:00:08]} 64. Kh2 {[%clk 0:00:03]}  gxf3 {[%clk 0:00:06]} 65. Qd8+ {[%clk 0:00:02]}  Kf7 {[%clk 0:00:06]} 66. a8=Q {[%clk 0:00:03]}  Qb2+ {[%clk 0:00:06]} 67. Kh3 {[%clk 0:00:01]}  Qg2# {[%clk 0:00:06]} 0-1


[Site "https://www.chess.com"]

[Event "Titled Tuesday Blitz May 23 Late 2023"]
[White "a-z30"]
[Black "Chylewski, Patryk"]
[BlackFideId "1186191"]
[WhiteElo "2404"]
[BlackElo "2163"]
[Result "0-1"]
[Round "05"]
[TimeControl "180+2"]
[Date "2023.05.23"]
[WhiteClock "0:00:00"]
[BlackClock "0:00:47"]

1. d3 {[%clk 0:02:58]}  d5 {[%clk 0:02:59]} 2. Nf3 {[%clk 0:02:58]}  Nf6 {[%clk 0:02:59]} 3. g3 {[%clk 0:02:59]}  Bg4 {[%clk 0:02:59]} 4. Bg2 {[%clk 0:03:00]}  c6 {[%clk 0:02:59]} 5. O-O {[%clk 0:03:00]}  Nbd7 {[%clk 0:02:59]} 6. c4 {[%clk 0:02:59]}  e6 {[%clk 0:02:56]} 7. cxd5 {[%clk 0:02:59]}  cxd5 {[%clk 0:02:52]} 8. Nc3 {[%clk 0:02:59]}  Be7 {[%clk 0:02:51]} 9. h3 {[%clk 0:02:59]}  Bh5 {[%clk 0:02:51]} 10. Bf4 {[%clk 0:02:55]}  O-O {[%clk 0:02:50]} 11. Ne5 {[%clk 0:02:38]}  Nxe5 {[%clk 0:02:43]} 12. Bxe5 {[%clk 0:02:38]}  Qb6 {[%clk 0:02:37]} 13. Qb3 {[%clk 0:02:25]}  Qxb3 {[%clk 0:02:36]} 14. axb3 {[%clk 0:02:24]}  a6 {[%clk 0:02:36]} 15. g4 {[%clk 0:02:13]}  Bg6 {[%clk 0:02:35]} 16. Rfc1 {[%clk 0:02:05]}  Rac8 {[%clk 0:02:32]} 17. Na4 {[%clk 0:01:58]}  Nd7 {[%clk 0:02:32]} 18. Bc7 {[%clk 0:01:49]}  Nc5 {[%clk 0:02:22]} 19. Nxc5 {[%clk 0:01:19]}  Rxc7 {[%clk 0:02:22]} 20. b4 {[%clk 0:01:19]}  Rfc8 {[%clk 0:02:20]} 21. d4 {[%clk 0:01:09]}  b6 {[%clk 0:02:19]} 22. Nb3 {[%clk 0:00:26]}  Rxc1+ {[%clk 0:01:47]} 23. Rxc1 {[%clk 0:00:27]}  Rxc1+ {[%clk 0:01:47]} 24. Nxc1 {[%clk 0:00:28]}  Bxb4 {[%clk 0:01:47]} 25. e3 {[%clk 0:00:29]}  Kf8 {[%clk 0:01:44]} 26. Bf1 {[%clk 0:00:28]}  b5 {[%clk 0:01:38]} 27. Nd3 {[%clk 0:00:19]}  Bd6 {[%clk 0:01:38]} 28. Be2 {[%clk 0:00:15]}  Ke7 {[%clk 0:01:37]} 29. Kf1 {[%clk 0:00:16]}  f6 {[%clk 0:01:37]} 30. Ke1 {[%clk 0:00:16]}  Kd7 {[%clk 0:01:37]} 31. Kd2 {[%clk 0:00:17]}  Kc6 {[%clk 0:01:37]} 32. Kc3 {[%clk 0:00:16]}  a5 {[%clk 0:01:38]} 33. b3 {[%clk 0:00:16]}  Bf7 {[%clk 0:01:30]} 34. f4 {[%clk 0:00:15]}  Bg6 {[%clk 0:01:29]} 35. Bf3 {[%clk 0:00:15]}  Kb6 {[%clk 0:01:10]} 36. h4 {[%clk 0:00:15]}  h6 {[%clk 0:01:08]} 37. h5 {[%clk 0:00:15]}  Be8 {[%clk 0:01:08]} 38. Be2 {[%clk 0:00:13]}  Bc6 {[%clk 0:01:07]} 39. Kc2 {[%clk 0:00:13]}  a4 {[%clk 0:01:07]} 40. bxa4 {[%clk 0:00:13]}  bxa4 {[%clk 0:01:08]} 41. Nc1 {[%clk 0:00:10]}  Bb5 {[%clk 0:01:06]} 42. Bxb5 {[%clk 0:00:06]}  Kxb5 {[%clk 0:01:07]} 43. Na2 {[%clk 0:00:06]}  Kc4 {[%clk 0:01:07]} 44. f5 {[%clk 0:00:03]}  exf5 {[%clk 0:01:01]} 45. gxf5 {[%clk 0:00:04]}  Bg3 {[%clk 0:01:02]} 46. Nc3 {[%clk 0:00:02]}  a3 {[%clk 0:01:01]} 47. e4 {[%clk 0:00:02]}  dxe4 {[%clk 0:00:50]} 48. Nxe4 {[%clk 0:00:00]}  Bf4 {[%clk 0:00:47]} 0-1


[Site "https://www.chess.com"]